[Event "Early-Titled-Tuesday-Blitz-September-12-2023"]
[Site "Chess.com"]
[Date "2023.09.12"]
[Round "7"]
[White "seramoral"]
[Black "Leonid_Starozhilov"]
[Result "1-0"]
[WhiteElo "2615"]
[BlackElo "2774"]
[TimeControl "180+1"]
[EndTime "9:17:16 PDT"]
[Termination "seramoral won on time"]

1. e4 {[%clk 0:03:00.9]} 1... c5 {[%clk 0:02:59.6]} 2. Nf3 {[%clk 0:02:59.5]}
2... e6 {[%clk 0:02:59.8]} 3. c3 {[%clk 0:02:57]} 3... Nf6 {[%clk 0:02:59.2]} 4.
e5 {[%clk 0:02:57.5]} 4... Nd5 {[%clk 0:02:59.7]} 5. Bc4 {[%clk 0:02:56.7]} 5...
d6 {[%clk 0:02:46.5]} 6. d4 {[%clk 0:02:53.8]} 6... cxd4 {[%clk 0:02:45.2]} 7.
cxd4 {[%clk 0:02:54]} 7... Nc6 {[%clk 0:02:45.8]} 8. O-O {[%clk 0:02:51.1]} 8...
Be7 {[%clk 0:02:44]} 9. exd6 {[%clk 0:02:47.7]} 9... Qxd6 {[%clk 0:02:42.3]} 10.
Nc3 {[%clk 0:02:47.3]} 10... Nxc3 {[%clk 0:02:40.3]} 11. bxc3 {[%clk 0:02:47.3]}
11... b6 {[%clk 0:02:40.5]} 12. Bd3 {[%clk 0:02:44.8]} 12... Bb7 {[%clk
0:02:39.6]} 13. Qe2 {[%clk 0:02:40.7]} 13... Qd5 {[%clk 0:02:31.7]} 14. c4
{[%clk 0:02:30.9]} 14... Qh5 {[%clk 0:02:23.3]} 15. Rb1 {[%clk 0:02:19.1]} 15...
O-O-O {[%clk 0:01:55.7]} 16. Rb5 {[%clk 0:02:15.5]} 16... g5 {[%clk 0:01:09.7]}
17. d5 {[%clk 0:01:58.7]} 17... Nb4 {[%clk 0:00:54.8]} 18. Be4 {[%clk
0:01:33.7]} 18... exd5 {[%clk 0:00:22.1]} 19. Bf5+ {[%clk 0:01:27.9]} 19... Kb8
{[%clk 0:00:20.6]} 20. Qxe7 {[%clk 0:01:26.2]} 20... Nc6 {[%clk 0:00:18.1]} 21.
Qxg5 {[%clk 0:01:22.5]} 21... Qxg5 {[%clk 0:00:17.4]} 22. Bxg5 {[%clk
0:01:21.4]} 22... Rde8 {[%clk 0:00:11.4]} 23. cxd5 {[%clk 0:01:18.3]} 23... Na5
{[%clk 0:00:10.9]} 24. Rc1 {[%clk 0:01:15.5]} 24... Ba6 {[%clk 0:00:09.3]} 25.
Bf4+ {[%clk 0:01:12.2]} 25... Ka8 {[%clk 0:00:09.3]} 26. Rb4 {[%clk 0:01:12.9]}
26... Rd8 {[%clk 0:00:06.7]} 27. d6 {[%clk 0:01:08.2]} 27... Bb7 {[%clk
0:00:06.6]} 28. d7 {[%clk 0:01:04.7]} 28... Bc6 {[%clk 0:00:02.8]} 29. Bg5
{[%clk 0:00:59.4]} 29... Bxd7 {[%clk 0:00:03]} 30. Bxd8 {[%clk 0:00:52.8]} 30...
Bxf5 {[%clk 0:00:02.8]} 31. Bxb6 {[%clk 0:00:51.4]} 31... axb6 {[%clk
0:00:02.7]} 32. Rxb6 {[%clk 0:00:52.1]} 32... Ka7 {[%clk 0:00:02.6]} 33. Rb5
{[%clk 0:00:51.5]} 1-0

[Event "Early-Titled-Tuesday-Blitz-September-12-2023"]
[Site "Chess.com"]
[Date "2023.09.12"]
[Round "7"]
[White "DanyKopy"]
[Black "tdf98pantani"]
[Result "0-1"]
[WhiteElo "2519"]
[BlackElo "2735"]
[TimeControl "180+1"]
[EndTime "9:17:17 PDT"]
[Termination "tdf98pantani won by resignation"]

1. d4 {[%clk 0:03:00.9]} 1... d5 {[%clk 0:02:58.5]} 2. c4 {[%clk 0:03:00.5]}
2... e6 {[%clk 0:02:53]} 3. Nf3 {[%clk 0:03:00.2]} 3... Nf6 {[%clk 0:02:52.8]}
4. Nc3 {[%clk 0:03:00]} 4... Bb4 {[%clk 0:02:51.9]} 5. Bg5 {[%clk 0:02:58.6]}
5... h6 {[%clk 0:02:40.1]} 6. Bxf6 {[%clk 0:02:58.2]} 6... Qxf6 {[%clk
0:02:40.1]} 7. e3 {[%clk 0:02:58.3]} 7... O-O {[%clk 0:02:38.5]} 8. Rc1 {[%clk
0:02:57.7]} 8... Nd7 {[%clk 0:02:11.1]} 9. cxd5 {[%clk 0:02:44.7]} 9... exd5
{[%clk 0:02:10.5]} 10. Bd3 {[%clk 0:02:42.8]} 10... c6 {[%clk 0:02:06.1]} 11.
O-O {[%clk 0:02:41.6]} 11... Re8 {[%clk 0:02:04.5]} 12. a3 {[%clk 0:02:35.8]}
12... Bxc3 {[%clk 0:01:53.8]} 13. bxc3 {[%clk 0:02:31.6]} 13... Nb6 {[%clk
0:01:53.7]} 14. Ne5 {[%clk 0:02:28.2]} 14... Bf5 {[%clk 0:01:53.4]} 15. c4
{[%clk 0:02:21.5]} 15... Bxd3 {[%clk 0:01:51.8]} 16. Qxd3 {[%clk 0:02:20.5]}
16... Rad8 {[%clk 0:01:44.5]} 17. Rb1 {[%clk 0:02:02.6]} 17... Re7 {[%clk
0:01:33.7]} 18. c5 {[%clk 0:01:53.7]} 18... Nd7 {[%clk 0:01:33.4]} 19. Rxb7
{[%clk 0:01:40.9]} 19... Nxc5 {[%clk 0:01:28.7]} 20. dxc5 {[%clk 0:01:26.3]}
20... Rxb7 {[%clk 0:01:27.8]} 21. Qa6 {[%clk 0:01:25.9]} 21... Rc7 {[%clk
0:01:25.2]} 22. Nf3 {[%clk 0:01:25.6]} 22... Qc3 {[%clk 0:01:22.4]} 23. Nd4
{[%clk 0:00:49.7]} 23... Qxc5 {[%clk 0:01:21.5]} 24. h3 {[%clk 0:00:48.9]} 24...
Qb6 {[%clk 0:01:15.2]} 25. Qd3 {[%clk 0:00:45.8]} 25... c5 {[%clk 0:01:15]} 26.
Nf5 {[%clk 0:00:45.2]} 26... Qf6 {[%clk 0:01:14.2]} 27. Rb1 {[%clk 0:00:38]}
27... d4 {[%clk 0:01:03.9]} 28. e4 {[%clk 0:00:36.2]} 28... c4 {[%clk
0:01:02.9]} 29. Qg3 {[%clk 0:00:35.4]} 29... Rcd7 {[%clk 0:00:47.9]} 30. f4
{[%clk 0:00:32.9]} 30... d3 {[%clk 0:00:45]} 31. Ne3 {[%clk 0:00:27.8]} 31... c3
{[%clk 0:00:41.3]} 32. Nd5 {[%clk 0:00:21.8]} 32... Rxd5 {[%clk 0:00:41.3]} 33.
exd5 {[%clk 0:00:21.6]} 33... c2 {[%clk 0:00:36.2]} 0-1

[Event "Early-Titled-Tuesday-Blitz-September-12-2023"]
[Site "Chess.com"]
[Date "2023.09.12"]
[Round "7"]
[White "LileKoridze"]
[Black "sergeikim"]
[Result "0-1"]
[WhiteElo "2370"]
[BlackElo "2562"]
[TimeControl "180+1"]
[EndTime "9:17:17 PDT"]
[Termination "sergeikim won by resignation"]

1. d4 {[%clk 0:03:00.9]} 1... Nf6 {[%clk 0:03:00]} 2. c4 {[%clk 0:03:00.1]} 2...
g6 {[%clk 0:03:00.4]} 3. Nc3 {[%clk 0:02:58]} 3... Bg7 {[%clk 0:03:01]} 4. e4
{[%clk 0:02:56.5]} 4... d6 {[%clk 0:03:01.5]} 5. Nf3 {[%clk 0:02:54.3]} 5... O-O
{[%clk 0:03:01.7]} 6. Be2 {[%clk 0:02:51]} 6... e5 {[%clk 0:03:01.9]} 7. O-O
{[%clk 0:02:47.7]} 7... exd4 {[%clk 0:03:02.1]} 8. Nxd4 {[%clk 0:02:40]} 8...
Re8 {[%clk 0:03:02.6]} 9. f3 {[%clk 0:02:15.2]} 9... c6 {[%clk 0:03:02.9]} 10.
Be3 {[%clk 0:02:13.4]} 10... Nbd7 {[%clk 0:03:02.9]} 11. Qd2 {[%clk 0:02:12.1]}
11... a5 {[%clk 0:03:03.1]} 12. Rfd1 {[%clk 0:02:11.4]} 12... a4 {[%clk
0:03:03.2]} 13. Bf4 {[%clk 0:02:10.1]} 13... Ne5 {[%clk 0:03:02.5]} 14. Kh1
{[%clk 0:02:07.3]} 14... Qa5 {[%clk 0:03:02]} 15. Nc2 {[%clk 0:01:58.3]} 15...
Be6 {[%clk 0:02:57.4]} 16. Qxd6 {[%clk 0:01:45]} 16... Nxc4 {[%clk 0:02:54.1]}
17. Bxc4 {[%clk 0:01:42.7]} 17... Bxc4 {[%clk 0:02:54.1]} 18. Qb4 {[%clk
0:01:41]} 18... Qxb4 {[%clk 0:02:53]} 19. Nxb4 {[%clk 0:01:40.1]} 19... Be6
{[%clk 0:02:47.9]} 20. Nd3 {[%clk 0:01:34.4]} 20... Nd7 {[%clk 0:02:41.9]} 21.
a3 {[%clk 0:01:26.9]} 21... Bb3 {[%clk 0:02:39.7]} 22. Re1 {[%clk 0:01:21.6]}
22... h6 {[%clk 0:02:39.4]} 23. Rac1 {[%clk 0:01:18.2]} 23... Rad8 {[%clk
0:02:24.1]} 24. Be3 {[%clk 0:01:00.2]} 24... Ne5 {[%clk 0:02:19.2]} 25. Nxe5
{[%clk 0:00:59.4]} 25... Rxe5 {[%clk 0:02:16.1]} 26. g3 {[%clk 0:00:55.3]} 26...
Re7 {[%clk 0:02:10.5]} 27. Kg2 {[%clk 0:00:53.9]} 27... Red7 {[%clk 0:02:06.9]}
28. Kf2 {[%clk 0:00:53.9]} 28... Kh7 {[%clk 0:01:47.4]} 29. Re2 {[%clk
0:00:48.5]} 29... Bc4 {[%clk 0:01:45.4]} 30. Ree1 {[%clk 0:00:48.3]} 30... b5
{[%clk 0:01:43.1]} 31. Red1 {[%clk 0:00:48.2]} 31... Bb3 {[%clk 0:01:40.2]} 32.
Rxd7 {[%clk 0:00:46.8]} 32... Rxd7 {[%clk 0:01:40.9]} 33. Ke2 {[%clk 0:00:47.3]}
33... Bf8 {[%clk 0:01:35.6]} 34. e5 {[%clk 0:00:40.6]} 34... Bg7 {[%clk
0:01:27.9]} 35. f4 {[%clk 0:00:39.9]} 35... Bc4+ {[%clk 0:01:25]} 36. Kf2 {[%clk
0:00:39.8]} 36... Rd3 {[%clk 0:01:12.2]} 37. Rc2 {[%clk 0:00:38]} 37... f6
{[%clk 0:01:09.4]} 38. exf6 {[%clk 0:00:36.9]} 38... Bxf6 {[%clk 0:01:09.2]} 39.
Ne4 {[%clk 0:00:37]} 39... Bg7 {[%clk 0:01:07.1]} 40. Nc5 {[%clk 0:00:35.4]}
40... Rd1 {[%clk 0:01:03.7]} 41. Ne4 {[%clk 0:00:22.4]} 41... Bd3 {[%clk
0:01:00.7]} 0-1

[Event "Early-Titled-Tuesday-Blitz-September-12-2023"]
[Site "Chess.com"]
[Date "2023.09.12"]
[Round "7"]
[White "Arimin1329"]
[Black "MdImranCM"]
[Result "0-1"]
[WhiteElo "2274"]
[BlackElo "2490"]
[TimeControl "180+1"]
[EndTime "9:17:18 PDT"]
[Termination "MdImranCM won by resignation"]

1. d4 {[%clk 0:02:48.3]} 1... d5 {[%clk 0:02:55.8]} 2. b3 {[%clk 0:02:48.3]}
2... g6 {[%clk 0:02:53.5]} 3. Bb2 {[%clk 0:02:49.2]} 3... Bg7 {[%clk 0:02:52.6]}
4. Nd2 {[%clk 0:02:50.1]} 4... Nf6 {[%clk 0:02:51]} 5. e3 {[%clk 0:02:50.1]}
5... O-O {[%clk 0:02:51.4]} 6. Ngf3 {[%clk 0:02:51]} 6... b6 {[%clk 0:02:44.7]}
7. Be2 {[%clk 0:02:51.6]} 7... Bb7 {[%clk 0:02:43.6]} 8. O-O {[%clk 0:02:52.5]}
8... Nbd7 {[%clk 0:02:44.2]} 9. Rc1 {[%clk 0:02:52.5]} 9... c5 {[%clk
0:02:44.4]} 10. c4 {[%clk 0:02:51.2]} 10... dxc4 {[%clk 0:02:44]} 11. Nxc4
{[%clk 0:02:49.7]} 11... Rc8 {[%clk 0:02:44]} 12. Nce5 {[%clk 0:02:26.4]} 12...
Ne4 {[%clk 0:02:40]} 13. Nxd7 {[%clk 0:02:23.5]} 13... Qxd7 {[%clk 0:02:37.5]}
14. Ba1 {[%clk 0:02:12.7]} 14... Qf5 {[%clk 0:02:19.1]} 15. Bd3 {[%clk 0:02:09]}
15... Rfd8 {[%clk 0:02:17.5]} 16. Nd2 {[%clk 0:02:03.9]} 16... Qe6 {[%clk
0:01:37.5]} 17. Bc4 {[%clk 0:01:35.2]} 17... Qc6 {[%clk 0:01:32.7]} 18. d5
{[%clk 0:01:28.5]} 18... Rxd5 {[%clk 0:01:25.9]} 19. Bxd5 {[%clk 0:01:20.9]}
19... Qxd5 {[%clk 0:01:26.8]} 20. Nf3 {[%clk 0:00:50.9]} 20... Bxa1 {[%clk
0:00:58.8]} 21. Qxd5 {[%clk 0:00:45.9]} 21... Bxd5 {[%clk 0:00:59.7]} 22. Rxa1
{[%clk 0:00:46]} 22... Nc3 {[%clk 0:00:59.9]} 23. Rfe1 {[%clk 0:00:38.7]} 23...
c4 {[%clk 0:00:58.2]} 24. bxc4 {[%clk 0:00:30.8]} 24... Rxc4 {[%clk 0:00:59.1]}
25. Nd4 {[%clk 0:00:23.9]} 25... e5 {[%clk 0:00:55.6]} 26. Nb3 {[%clk
0:00:21.9]} 26... a5 {[%clk 0:00:55.6]} 27. Rac1 {[%clk 0:00:21.1]} 27... a4
{[%clk 0:00:55.8]} 28. Nd2 {[%clk 0:00:04.3]} 28... Ne2+ {[%clk 0:00:55.5]} 29.
Kf1 {[%clk 0:00:04.3]} 29... Nxc1 {[%clk 0:00:52]} 30. Nxc4 {[%clk 0:00:04]}
30... Bxc4+ {[%clk 0:00:52.9]} 31. Kg1 {[%clk 0:00:03.9]} 31... Nxa2 {[%clk
0:00:53.6]} 32. Rc1 {[%clk 0:00:03.5]} 32... Nxc1 {[%clk 0:00:53.7]} 0-1

[Event "Early-Titled-Tuesday-Blitz-September-12-2023"]
[Site "Chess.com"]
[Date "2023.09.12"]
[Round "7"]
[White "bazar-wokzal"]
[Black "Lennis93"]
[Result "1-0"]
[WhiteElo "2559"]
[BlackElo "2727"]
[TimeControl "180+1"]
[EndTime "9:17:21 PDT"]
[Termination "bazar-wokzal won by checkmate"]

1. e4 {[%clk 0:03:00.9]} 1... c6 {[%clk 0:02:59.5]} 2. d4 {[%clk 0:03:00.6]}
2... d5 {[%clk 0:03:00.4]} 3. f3 {[%clk 0:03:00.9]} 3... e6 {[%clk 0:03:00.1]}
4. Nc3 {[%clk 0:03:00.7]} 4... Bb4 {[%clk 0:03:00.3]} 5. Be3 {[%clk 0:03:00.2]}
5... Nf6 {[%clk 0:02:59.1]} 6. Bd3 {[%clk 0:02:54.7]} 6... b6 {[%clk 0:02:58.1]}
7. Qe2 {[%clk 0:02:50.1]} 7... a5 {[%clk 0:02:57.1]} 8. e5 {[%clk 0:02:44.1]}
8... Nfd7 {[%clk 0:02:56.8]} 9. f4 {[%clk 0:02:43.1]} 9... Ba6 {[%clk
0:02:56.5]} 10. Nf3 {[%clk 0:02:42.1]} 10... c5 {[%clk 0:02:56.1]} 11. Bxa6
{[%clk 0:02:38.9]} 11... Nxa6 {[%clk 0:02:55.6]} 12. O-O {[%clk 0:02:37.6]}
12... Bxc3 {[%clk 0:02:54.3]} 13. bxc3 {[%clk 0:02:37.4]} 13... O-O {[%clk
0:02:54.2]} 14. g4 {[%clk 0:02:33.1]} 14... f5 {[%clk 0:02:53.2]} 15. gxf5
{[%clk 0:02:23.2]} 15... Rxf5 {[%clk 0:02:52.4]} 16. Kh1 {[%clk 0:02:23.1]}
16... c4 {[%clk 0:02:46.7]} 17. Rg1 {[%clk 0:02:22.5]} 17... Nc7 {[%clk
0:02:44.3]} 18. Rg3 {[%clk 0:02:21]} 18... g6 {[%clk 0:02:38.2]} 19. Rag1 {[%clk
0:02:20.7]} 19... Qe7 {[%clk 0:02:36.7]} 20. Ng5 {[%clk 0:02:17.4]} 20... Nf8
{[%clk 0:02:32.1]} 21. h4 {[%clk 0:02:16.4]} 21... Nb5 {[%clk 0:02:09]} 22. Bd2
{[%clk 0:02:13.9]} 22... h5 {[%clk 0:01:19.8]} 23. Be1 {[%clk 0:01:59]} 23...
Ra7 {[%clk 0:01:19]} 24. Rf3 {[%clk 0:01:30.3]} 24... Qa3 {[%clk 0:01:17.5]} 25.
Nh3 {[%clk 0:01:26.3]} 25... Rg7 {[%clk 0:01:14.1]} 26. Nf2 {[%clk 0:01:24.8]}
26... Qxa2 {[%clk 0:01:14]} 27. Nd1 {[%clk 0:01:24.6]} 27... Na3 {[%clk
0:01:11.3]} 28. Ne3 {[%clk 0:01:23.8]} 28... Rff7 {[%clk 0:01:04.6]} 29. Qg2
{[%clk 0:01:12.2]} 29... b5 {[%clk 0:01:03]} 30. f5 {[%clk 0:01:07.6]} 30...
gxf5 {[%clk 0:01:00]} 31. Rg3 {[%clk 0:01:08]} 31... Rg4 {[%clk 0:00:43.3]} 32.
Nxg4 {[%clk 0:01:07.2]} 32... fxg4 {[%clk 0:00:43.2]} 33. Rxg4+ {[%clk
0:01:07.5]} 33... Kh7 {[%clk 0:00:20.2]} 34. Rg7+ {[%clk 0:01:05.6]} 34... Kh8
{[%clk 0:00:17.7]} 35. Rg8+ {[%clk 0:01:05.2]} 35... Kh7 {[%clk 0:00:17.5]} 36.
Qg7+ {[%clk 0:00:54.7]} 36... Rxg7 {[%clk 0:00:16.9]} 37. R1xg7+ {[%clk
0:00:55]} 37... Kh6 {[%clk 0:00:16.1]} 38. Bd2# {[%clk 0:00:55.7]} 1-0

[Event "Early-Titled-Tuesday-Blitz-September-12-2023"]
[Site "Chess.com"]
[Date "2023.09.12"]
[Round "7"]
[White "maurovargas01"]
[Black "DarZay"]
[Result "0-1"]
[WhiteElo "1863"]
[BlackElo "2265"]
[TimeControl "180+1"]
[EndTime "9:17:24 PDT"]
[Termination "DarZay won on time"]

1. e4 {[%clk 0:03:00.9]} 1... c5 {[%clk 0:02:55.5]} 2. Nc3 {[%clk 0:03:00.7]}
2... g6 {[%clk 0:02:54.5]} 3. f4 {[%clk 0:03:01.6]} 3... Bg7 {[%clk 0:02:54.6]}
4. Nf3 {[%clk 0:03:02.5]} 4... d6 {[%clk 0:02:49.3]} 5. Bb5+ {[%clk 0:03:01.3]}
5... Bd7 {[%clk 0:02:48.5]} 6. Bxd7+ {[%clk 0:03:01.4]} 6... Nxd7 {[%clk
0:02:48.7]} 7. O-O {[%clk 0:03:02.3]} 7... Ngf6 {[%clk 0:02:34.6]} 8. Qe1 {[%clk
0:03:00.9]} 8... Qb6 {[%clk 0:02:32]} 9. Kh1 {[%clk 0:02:57.4]} 9... O-O-O
{[%clk 0:02:30.8]} 10. d3 {[%clk 0:02:47.1]} 10... e5 {[%clk 0:02:23.4]} 11.
fxe5 {[%clk 0:02:44.6]} 11... Nxe5 {[%clk 0:02:22.8]} 12. Ng5 {[%clk 0:02:26.8]}
12... h6 {[%clk 0:02:21.3]} 13. Nh3 {[%clk 0:02:01.8]} 13... Rde8 {[%clk
0:02:19.7]} 14. Rf2 {[%clk 0:01:41.3]} 14... d5 {[%clk 0:02:16.5]} 15. Qf1
{[%clk 0:01:33.2]} 15... d4 {[%clk 0:02:07.8]} 16. Na4 {[%clk 0:00:57.8]} 16...
Qc6 {[%clk 0:02:06.3]} 17. b3 {[%clk 0:00:56.9]} 17... Nfg4 {[%clk 0:01:47.5]}
18. Re2 {[%clk 0:00:54]} 18... f5 {[%clk 0:01:42.7]} 19. Nf4 {[%clk 0:00:45.1]}
19... Rhf8 {[%clk 0:01:37.5]} 20. Nd5 {[%clk 0:00:42.2]} 20... fxe4 {[%clk
0:01:34.4]} 21. Qe1 {[%clk 0:00:32.1]} 21... Qxd5 {[%clk 0:01:31.1]} 22. Rxe4
{[%clk 0:00:23.6]} 22... Nf2+ {[%clk 0:01:28.5]} 23. Kg1 {[%clk 0:00:19.1]}
23... Nxe4 {[%clk 0:01:28.3]} 24. dxe4 {[%clk 0:00:19.4]} 24... Qd6 {[%clk
0:01:21.7]} 25. Bf4 {[%clk 0:00:18.8]} 25... Rxf4 {[%clk 0:01:20.3]} 26. Qg3
{[%clk 0:00:16.9]} 26... g5 {[%clk 0:01:19.5]} 27. Nb2 {[%clk 0:00:13.1]} 27...
Qc6 {[%clk 0:01:10]} 28. Re1 {[%clk 0:00:11.6]} 28... Rxe4 {[%clk 0:01:08.4]}
29. Rf1 {[%clk 0:00:08.7]} 29... Rf8 {[%clk 0:01:03.6]} 30. Rc1 {[%clk
0:00:04.7]} 30... Re2 {[%clk 0:00:56.7]} 31. Nd3 {[%clk 0:00:02.9]} 31... Qe4
{[%clk 0:00:50.2]} 0-1

[Event "Early-Titled-Tuesday-Blitz-September-12-2023"]
[Site "Chess.com"]
[Date "2023.09.12"]
[Round "7"]
[White "benny_aizenberg"]
[Black "ShiroglanTalibov"]
[Result "0-1"]
[WhiteElo "2624"]
[BlackElo "2853"]
[TimeControl "180+1"]
[EndTime "9:17:25 PDT"]
[Termination "ShiroglanTalibov won by checkmate"]

1. g4 {[%clk 0:02:59.4]} 1... d5 {[%clk 0:02:57.7]} 2. g5 {[%clk 0:02:58]} 2...
e5 {[%clk 0:02:56.7]} 3. h4 {[%clk 0:02:56.7]} 3... h6 {[%clk 0:02:50.2]} 4. d3
{[%clk 0:02:35.5]} 4... hxg5 {[%clk 0:02:47.3]} 5. Bxg5 {[%clk 0:02:34.4]} 5...
Be7 {[%clk 0:02:47.9]} 6. Nf3 {[%clk 0:02:28.8]} 6... Nc6 {[%clk 0:02:44.8]} 7.
Nc3 {[%clk 0:02:26.5]} 7... Bg4 {[%clk 0:02:40.6]} 8. Bg2 {[%clk 0:02:21.2]}
8... Qd7 {[%clk 0:02:27.6]} 9. e4 {[%clk 0:01:49.8]} 9... Bxg5 {[%clk
0:02:13.9]} 10. hxg5 {[%clk 0:01:45.8]} 10... Rxh1+ {[%clk 0:02:14.8]} 11. Bxh1
{[%clk 0:01:42.1]} 11... dxe4 {[%clk 0:02:15.7]} 12. Nxe4 {[%clk 0:01:35.3]}
12... Nd4 {[%clk 0:02:15.4]} 13. c3 {[%clk 0:01:30.9]} 13... Bxf3 {[%clk
0:01:57.9]} 14. Bxf3 {[%clk 0:01:31.8]} 14... Ne6 {[%clk 0:01:57.8]} 15. Qb3
{[%clk 0:01:18.6]} 15... c6 {[%clk 0:01:49.3]} 16. O-O-O {[%clk 0:00:54.8]}
16... O-O-O {[%clk 0:01:44.4]} 17. Bg4 {[%clk 0:00:53.1]} 17... b6 {[%clk
0:01:41.3]} 18. g6 {[%clk 0:00:48.9]} 18... Nh6 {[%clk 0:01:37.2]} 19. Bh3
{[%clk 0:00:28.4]} 19... f5 {[%clk 0:01:35.8]} 20. Ng3 {[%clk 0:00:22.1]} 20...
Nc5 {[%clk 0:01:35.4]} 21. Qc4 {[%clk 0:00:19.6]} 21... Nxd3+ {[%clk 0:01:16.6]}
22. Kb1 {[%clk 0:00:19.3]} 22... b5 {[%clk 0:01:08.1]} 23. Qb3 {[%clk
0:00:17.2]} 23... Kb7 {[%clk 0:01:03.7]} 24. Bf1 {[%clk 0:00:14.3]} 24... e4
{[%clk 0:01:01.9]} 25. f3 {[%clk 0:00:13.6]} 25... Qc7 {[%clk 0:01:00]} 26. Ne2
{[%clk 0:00:11.9]} 26... Nc5 {[%clk 0:00:58.9]} 27. Qc2 {[%clk 0:00:11.8]} 27...
Rxd1+ {[%clk 0:00:54.2]} 28. Qxd1 {[%clk 0:00:12.7]} 28... exf3 {[%clk
0:00:54.9]} 29. Nd4 {[%clk 0:00:12.8]} 29... f2 {[%clk 0:00:50.4]} 30. Bg2
{[%clk 0:00:13.3]} 30... Ne4 {[%clk 0:00:48.6]} 31. Qf1 {[%clk 0:00:10.9]} 31...
Nd2+ {[%clk 0:00:46.7]} 32. Kc2 {[%clk 0:00:10.4]} 32... Nxf1 {[%clk 0:00:47.6]}
33. Nxb5 {[%clk 0:00:09.6]} 33... Ne3+ {[%clk 0:00:47.3]} 34. Kd3 {[%clk
0:00:09.8]} 34... Nxg2 {[%clk 0:00:48.2]} 35. Nxc7 {[%clk 0:00:09.6]} 35... Kxc7
{[%clk 0:00:49.1]} 36. Ke2 {[%clk 0:00:09.8]} 36... Ng4 {[%clk 0:00:49.1]} 37.
Kf1 {[%clk 0:00:10.1]} 37... N2e3+ {[%clk 0:00:49.9]} 38. Ke2 {[%clk 0:00:10.5]}
38... f1=Q+ {[%clk 0:00:50.8]} 39. Kd2 {[%clk 0:00:11.1]} 39... Qd1# {[%clk
0:00:51.7]} 0-1

[Event "Early-Titled-Tuesday-Blitz-September-12-2023"]
[Site "Chess.com"]
[Date "2023.09.12"]
[Round "7"]
[White "Jaka_Brilej"]
[Black "Hilary46"]
[Result "0-1"]
[WhiteElo "2447"]
[BlackElo "2576"]
[TimeControl "180+1"]
[EndTime "9:17:26 PDT"]
[Termination "Hilary46 won by resignation"]

1. d4 {[%clk 0:03:00.9]} 1... d5 {[%clk 0:02:59.7]} 2. Nf3 {[%clk 0:02:59.9]}
2... Nf6 {[%clk 0:02:59.4]} 3. e3 {[%clk 0:02:59.7]} 3... e6 {[%clk 0:02:59.4]}
4. Bd3 {[%clk 0:02:58.8]} 4... c5 {[%clk 0:02:58.5]} 5. b3 {[%clk 0:02:58.6]}
5... Nc6 {[%clk 0:02:57.8]} 6. Bb2 {[%clk 0:02:57.6]} 6... cxd4 {[%clk 0:02:58]}
7. exd4 {[%clk 0:02:57.4]} 7... Bd6 {[%clk 0:02:48.2]} 8. O-O {[%clk 0:02:56.7]}
8... Qc7 {[%clk 0:02:48.5]} 9. a3 {[%clk 0:02:51.6]} 9... a5 {[%clk 0:02:45.1]}
10. Nbd2 {[%clk 0:02:51]} 10... a4 {[%clk 0:02:44.3]} 11. b4 {[%clk 0:02:47.1]}
11... O-O {[%clk 0:02:44.2]} 12. Qe2 {[%clk 0:02:46.2]} 12... Bd7 {[%clk
0:02:38.8]} 13. Ne5 {[%clk 0:02:44.5]} 13... Ne7 {[%clk 0:02:39.1]} 14. f4
{[%clk 0:02:42.6]} 14... Ne8 {[%clk 0:02:17.8]} 15. Rae1 {[%clk 0:02:35.3]}
15... f6 {[%clk 0:02:16.4]} 16. Nxd7 {[%clk 0:02:32.4]} 16... Qxd7 {[%clk
0:02:17.3]} 17. Qxe6+ {[%clk 0:02:27.6]} 17... Qxe6 {[%clk 0:02:18.2]} 18. Rxe6
{[%clk 0:02:27.7]} 18... Kf7 {[%clk 0:02:18.2]} 19. Rfe1 {[%clk 0:02:15]} 19...
Ng6 {[%clk 0:02:06.4]} 20. g3 {[%clk 0:02:12.9]} 20... Rd8 {[%clk 0:02:05.3]}
21. c4 {[%clk 0:02:01.7]} 21... Nc7 {[%clk 0:02:04]} 22. f5 {[%clk 0:01:47.4]}
22... Nxe6 {[%clk 0:01:58.7]} 23. fxe6+ {[%clk 0:01:19.6]} 23... Ke7 {[%clk
0:01:38.5]} 24. cxd5 {[%clk 0:01:19.3]} 24... Rc8 {[%clk 0:01:34.4]} 25. Nc4
{[%clk 0:01:10.1]} 25... Rfd8 {[%clk 0:01:30.6]} 26. Nb6 {[%clk 0:01:02.3]}
26... Rc7 {[%clk 0:01:26.8]} 27. Bc1 {[%clk 0:00:49.9]} 27... Kf8 {[%clk
0:01:23.7]} 28. Kg2 {[%clk 0:00:44.4]} 28... Kg8 {[%clk 0:01:17]} 29. h4 {[%clk
0:00:28.3]} 29... Rc3 {[%clk 0:01:12.1]} 30. Rd1 {[%clk 0:00:19.5]} 30... Ne7
{[%clk 0:01:11.8]} 31. Bb2 {[%clk 0:00:19.2]} 31... Rb3 {[%clk 0:01:07.7]} 32.
Rd2 {[%clk 0:00:18.4]} 32... Bc7 {[%clk 0:01:01.9]} 33. Nd7 {[%clk 0:00:15.6]}
33... Nxd5 {[%clk 0:00:59]} 34. Kg1 {[%clk 0:00:11]} 34... Ne7 {[%clk
0:00:53.3]} 35. Bc4 {[%clk 0:00:10.8]} 35... Rxg3+ {[%clk 0:00:52.7]} 36. Kf1
{[%clk 0:00:10.8]} 36... Rh3 {[%clk 0:00:50.9]} 37. d5 {[%clk 0:00:10.8]} 37...
Rh1+ {[%clk 0:00:51]} 38. Kg2 {[%clk 0:00:10.8]} 38... Rh2+ {[%clk 0:00:51.3]}
39. Kf1 {[%clk 0:00:07.7]} 39... Rxd2 {[%clk 0:00:52.2]} 40. d6 {[%clk
0:00:08.2]} 40... Bxd6 {[%clk 0:00:51.5]} 0-1